fUST/lending_fUST_20260609
["ID","MTS","AMOUNT","RATE_DAILY","PERIOD"]
[424474316,1780945843000,-500.0,0.00016712,2]
[424474289,1780945843000,-500.0,0.00016712,2]
[424474288,1780945843000,-500.0,0.00016712,2]
[424474294,1780945843000,-500.0,0.00016712,2]
[424474290,1780945843000,-151.0,0.00016712,2]
[424474298,1780945843000,-500.89575049,0.00016712,2]
[424474299,1780945843000,-170.2,0.00016712,2]
[424474301,1780945843000,-500.0,0.00016712,2]
[424474291,1780945843000,-151.0,0.00016712,2]
[424474297,1780945843000,-500.0,0.00016712,2]
[424474296,1780945843000,-500.79113143,0.00016712,2]
[424474295,1780945843000,-282.71,0.00016712,2]
[424474300,1780945843000,-500.0,0.00016712,2]
[424474305,1780945843000,-500.77863533,0.00016712,2]
[424474292,1780945843000,-151.0,0.00016712,2]
[424474314,1780945843000,-500.0,0.00016712,2]
[424474302,1780945843000,-500.0,0.00016712,2]
[424474315,1780945843000,-168.14258134,0.00016712,2]
[424474318,1780945843000,-500.0,0.00016712,2]
[424474309,1780945843000,-500.0,0.00016712,2]
[424474310,1780945843000,-500.83932201,0.00016712,2]
[424474307,1780945843000,-500.0,0.00016712,2]
[424474308,1780945843000,-500.0,0.00016712,2]
[424474306,1780945843000,-294.64,0.00016712,2]
[424474304,1780945843000,-500.0,0.00016712,2]
[424474303,1780945843000,-380.85,0.00016712,2]
[424474311,1780945843000,-500.0,0.00016712,2]
[424474312,1780945843000,-500.0,0.00016712,2]
[424474313,1780945843000,-500.0,0.00016712,2]
[424474371,1780945844000,-500.0,0.00016712,2]
[424474373,1780945844000,-326.86,0.00016712,2]
[424474375,1780945844000,-500.0,0.00016712,2]
[424474376,1780945844000,-500.0,0.00016712,2]
[424474378,1780945844000,-500.0,0.00016712,2]
[424474382,1780945844000,-648.4,0.00016712,2]
[424474381,1780945844000,-500.0,0.00016712,2]
[424474380,1780945844000,-500.0,0.00016712,2]
[424474383,1780945844000,-152.7,0.00016712,2]
[424474384,1780945844000,-339.18,0.00016712,2]
[424474391,1780945844000,-502.12284976,0.00016712,2]
[424474385,1780945844000,-500.0,0.00016712,2]
[424474386,1780945844000,-500.0,0.00016712,2]
[424474387,1780945844000,-500.0,0.00016712,2]
[424474390,1780945844000,-205.55109829,0.00016712,2]
[424474392,1780945844000,-169.38,0.00016712,2]
[424474393,1780945844000,-500.0,0.00016712,2]
[424474394,1780945844000,-500.0,0.00016712,2]
[424474397,1780945844000,-500.85921258,0.00016712,2]
[424474388,1780945844000,-500.0,0.00016712,2]
[424474377,1780945844000,-500.0,0.00016712,2]
[424474379,1780945844000,-620.20708996,0.00016712,2]
[424474374,1780945844000,-500.0,0.00016712,2]
[424474368,1780945844000,-500.0,0.00016712,2]
[424474370,1780945844000,-438.97,0.00016712,2]
[424474353,1780945844000,-500.0,0.00016712,2]
[424474350,1780945844000,-500.0,0.00016712,2]
[424474351,1780945844000,-500.0,0.00016712,2]
[424474349,1780945844000,-500.80791134,0.00016712,2]
[424474348,1780945844000,-500.80595932,0.00016712,2]
[424474354,1780945844000,-500.0,0.00016712,2]
[424474352,1780945844000,-500.0,0.00016712,2]
[424474355,1780945844000,-500.0,0.00016712,2]
[424474357,1780945844000,-500.0,0.00016712,2]
[424474367,1780945844000,-500.0,0.00016712,2]
[424474356,1780945844000,-500.0,0.00016712,2]
[424474362,1780945844000,-500.0,0.00016712,2]
[424474389,1780945844000,-450.39,0.00016712,2]
[424474364,1780945844000,-500.67037547,0.00016712,2]
[424474358,1780945844000,-437.15,0.00016712,2]
[424474361,1780945844000,-264.02410556,0.00016712,2]
[424474363,1780945844000,-500.84627752,0.00016712,2]
[424474360,1780945844000,-397.4,0.00016712,2]
[424474365,1780945844000,-395.7,0.00016712,2]
[424474366,1780945844000,-500.0,0.00016712,2]
[424474369,1780945844000,-500.0,0.00016712,2]
[424474372,1780945844000,-500.88332704,0.00016712,2]
[424474396,1780945844000,-500.0,0.00016712,2]
[424474359,1780945844000,-500.49245335,0.00016712,2]
[424474399,1780945844000,-501.45288287,0.00016712,2]
[424474426,1780945844000,-500.0,0.00016712,2]
[424474425,1780945844000,-500.0,0.00016712,2]
[424474429,1780945844000,-500.0,0.00016712,2]
[424474427,1780945844000,-500.0,0.00016712,2]
[424474428,1780945844000,-538.51,0.00016712,2]
[424474430,1780945844000,-289.99175165,0.00016712,2]
[424474433,1780945844000,-500.0,0.00016712,2]
[424474435,1780945844000,-500.0,0.00016712,2]
[424474434,1780945844000,-4835.86,0.00016712,2]
[424474432,1780945844000,-500.0,0.00016712,2]
[424474431,1780945844000,-500.0,0.00016712,2]
[424474436,1780945844000,-203.74,0.00016712,2]
[424474441,1780945844000,-500.0,0.00016986,2]
[424474437,1780945844000,-500.0,0.00016712,2]
[424474439,1780945844000,-500.0,0.00016712,2]
[424474440,1780945844000,-500.0,0.00016986,2]
[424474438,1780945844000,-160.89,0.00016712,2]
[424474444,1780945844000,-396.07,0.00016986,2]
[424474443,1780945844000,-246.35,0.00016986,2]
[424474445,1780945844000,-500.69423896,0.00016986,2]
[424474395,1780945844000,-306.87,0.00016712,2]
[424474424,1780945844000,-500.0,0.00016712,2]
[424474422,1780945844000,-151.0,0.00016712,2]
[424474442,1780945844000,-544.97,0.00016986,2]
[424474420,1780945844000,-500.0,0.00016712,2]
[424474421,1780945844000,-670.35,0.00016712,2]
[424474400,1780945844000,-467.63,0.00016712,2]
[424474403,1780945844000,-500.0,0.00016712,2]
[424474398,1780945844000,-500.0,0.00016712,2]
[424474401,1780945844000,-236.52,0.00016712,2]
[424474404,1780945844000,-500.0,0.00016712,2]
[424474405,1780945844000,-384.01618554,0.00016712,2]
[424474406,1780945844000,-499.67515182,0.00016712,2]
[424474407,1780945844000,-500.0,0.00016712,2]
[424474408,1780945844000,-575.9,0.00016712,2]
[424474409,1780945844000,-500.0,0.00016712,2]
[424474402,1780945844000,-500.0,0.00016712,2]
[424474411,1780945844000,-500.0,0.00016712,2]
[424474423,1780945844000,-315.28,0.00016712,2]
[424474410,1780945844000,-500.0,0.00016712,2]
[424474418,1780945844000,-640.08,0.00016712,2]
[424474419,1780945844000,-221.55912985,0.00016712,2]
[424474416,1780945844000,-690.01,0.00016712,2]
[424474417,1780945844000,-632.82,0.00016712,2]
[424474414,1780945844000,-502.47,0.00016712,2]
[424474415,1780945844000,-500.0,0.00016712,2]
[424474412,1780945844000,-500.0,0.00016712,2]
[424474413,1780945844000,-500.0,0.00016712,2]
[424474490,1780945845000,-500.0,0.00016986,2]
[424474487,1780945845000,-500.0,0.00016986,2]
[424474489,1780945845000,-500.0,0.00016986,2]
[424474492,1780945845000,-190.88,0.00016986,2]
[424474493,1780945845000,-500.90002184,0.00016986,2]
[424474485,1780945845000,-188.32,0.00016986,2]
[424474479,1780945845000,-523.43797605,0.00016986,2]
[424474482,1780945845000,-336.44,0.00016986,2]
[424474483,1780945845000,-500.0,0.00016986,2]
[424474478,1780945845000,-500.0,0.00016986,2]
[424474488,1780945845000,-574.47,0.00016986,2]
[424474477,1780945845000,-500.0,0.00016986,2]
[424474486,1780945845000,-183.05817674,0.00016986,2]
[424474484,1780945845000,-369.56,0.00016986,2]
[424474497,1780945845000,-500.0,0.00016986,2]
[424474494,1780945845000,-500.0,0.00016986,2]
[424474505,1780945845000,-640.08,0.00016986,2]
[424474506,1780945845000,-500.0,0.00016986,2]
[424474504,1780945845000,-632.82,0.00016986,2]
[424474495,1780945845000,-500.86717992,0.00016986,2]
[424474503,1780945845000,-690.01,0.00016986,2]
[424474499,1780945845000,-500.0,0.00016986,2]
[424474496,1780945845000,-500.86,0.00016986,2]
[424474502,1780945845000,-500.0,0.00016986,2]
[424474500,1780945845000,-231.15937693,0.00016986,2]
[424474501,1780945845000,-502.47,0.00016986,2]
[424474507,1780945845000,-670.35,0.00016986,2]
[424474473,1780945845000,-503.59,0.00016986,2]
[424474491,1780945845000,-500.0,0.00016986,2]
[424474476,1780945845000,-151.0,0.00016986,2]
[424474451,1780945845000,-500.0,0.00016986,2]
[424474472,1780945845000,-500.0,0.00016986,2]
[424474449,1780945845000,-500.0,0.00016986,2]
[424474454,1780945845000,-500.0,0.00016986,2]
[424474446,1780945845000,-500.0,0.00016986,2]
[424474452,1780945845000,-434.86707842,0.00016986,2]
[424474447,1780945845000,-500.0,0.00016986,2]
[424474448,1780945845000,-343.48,0.00016986,2]
[424474508,1780945845000,-151.0,0.00016986,2]
[424474453,1780945845000,-500.0,0.00016986,2]
[424474450,1780945845000,-181.08,0.00016986,2]
[424474455,1780945845000,-500.0,0.00016986,2]
[424474459,1780945845000,-500.0,0.00016986,2]
[424474458,1780945845000,-500.0,0.00016986,2]
[424474457,1780945845000,-621.08,0.00016986,2]
[424474466,1780945845000,-642.64,0.00016986,2]
[424474461,1780945845000,-500.41639086,0.00016986,2]
[424474460,1780945845000,-500.0,0.00016986,2]
[424474456,1780945845000,-500.0,0.00016986,2]
[424474462,1780945845000,-529.46,0.00016986,2]
[424474465,1780945845000,-500.0,0.00016986,2]
[424474463,1780945845000,-500.0,0.00016986,2]
[424474468,1780945845000,-500.0,0.00016986,2]
[424474467,1780945845000,-500.0,0.00016986,2]
[424474464,1780945845000,-500.0,0.00016986,2]
[424474470,1780945845000,-500.28,0.00016986,2]
[424474480,1780945845000,-259.09,0.00016986,2]
[424474471,1780945845000,-297.96015255,0.00016986,2]
[424474481,1780945845000,-500.0,0.00016986,2]
[424474469,1780945845000,-177.88,0.00016986,2]
[424474475,1780945845000,-151.0,0.00016986,2]
[424474474,1780945845000,-151.0,0.00016986,2]
[424474510,1780945845000,-500.0,0.00016986,2]
[424474498,1780945845000,-500.0,0.00016986,2]
[424474511,1780945845000,-500.0,0.00016986,2]
[424474541,1780945845000,-500.0,0.0001726,2]
[424474540,1780945845000,-539.80481367,0.0001726,2]
[424474539,1780945845000,-500.0,0.0001726,2]
[424474548,1780945845000,-514.61,0.0001726,2]
[424474552,1780945845000,-445.6,0.0001726,2]
[424474550,1780945845000,-424.52,0.0001726,2]
[424474549,1780945845000,-423.67976728,0.0001726,2]
[424474551,1780945845000,-500.0,0.0001726,2]
[424474554,1780945845000,-216.0,0.0001726,2]
[424474553,1780945845000,-500.0,0.0001726,2]
[424474557,1780945845000,-456.26,0.0001726,2]
[424474555,1780945845000,-258.06,0.0001726,2]
[424474558,1780945845000,-500.0,0.0001726,2]
[424474556,1780945845000,-247.10200893,0.0001726,2]
[424474534,1780945845000,-500.0,0.0001726,2]
[424474560,1780945845000,-500.0,0.0001726,2]
[424474572,1780945845000,-500.0,0.0001726,2]
[424474559,1780945845000,-156.46,0.0001726,2]
[424474561,1780945845000,-500.0,0.0001726,2]
[424474571,1780945845000,-500.0,0.0001726,2]
[424474569,1780945845000,-500.0,0.0001726,2]
[424474562,1780945845000,-502.47,0.0001726,2]
[424474563,1780945845000,-500.0,0.0001726,2]
[424474566,1780945845000,-640.08,0.0001726,2]
[424474568,1780945845000,-670.35,0.0001726,2]
[424474564,1780945845000,-690.01,0.0001726,2]
[424474565,1780945845000,-632.82,0.0001726,2]
[424474567,1780945845000,-279.48135627,0.0001726,2]
[424474509,1780945845000,-500.0,0.00016986,2]
[424474574,1780945845000,-500.0,0.0001726,2]
[424474570,1780945845000,-500.0,0.0001726,2]
[424474544,1780945845000,-500.0,0.0001726,2]
[424474573,1780945845000,-538.51,0.0001726,2]
[424474547,1780945845000,-500.0,0.0001726,2]
[424474537,1780945845000,-542.36765566,0.0001726,2]
[424474514,1780945845000,-500.0,0.00016986,2]
[424474515,1780945845000,-281.39,0.00016986,2]
[424474512,1780945845000,-500.0,0.00016986,2]
[424474513,1780945845000,-538.51,0.00016986,2]
[424474517,1780945845000,-481.069879,0.00016986,2]
[424474518,1780945845000,-481.069879,0.00016986,2]
[424474520,1780945845000,-4835.86,0.00016986,2]
[424474519,1780945845000,-481.069879,0.00016986,2]
[424474523,1780945845000,-500.0,0.00016986,2]
[424474524,1780945845000,-500.0,0.00016986,2]
[424474525,1780945845000,-156.0,0.00017014,3]
[424474532,1780945845000,-151.0,0.0001726,2]
[424474533,1780945845000,-151.0,0.0001726,2]
[424474516,1780945845000,-500.0,0.00016986,2]
[424474527,1780945845000,-179.87,0.0001726,2]
[424474526,1780945845000,-4595.596912,0.000171,2]
[424474546,1780945845000,-500.0,0.0001726,2]
[424474535,1780945845000,-281.11,0.0001726,2]
[424474545,1780945845000,-216.87,0.0001726,2]
[424474536,1780945845000,-167.36,0.0001726,2]
[424474542,1780945845000,-379.68,0.0001726,2]
[424474543,1780945845000,-529.46,0.0001726,2]
[424474531,1780945845000,-151.0,0.0001726,2]
[424474530,1780945845000,-500.0,0.0001726,2]
[424474529,1780945845000,-500.0,0.0001726,2]
[424474521,1780945845000,-481.069879,0.00016986,2]
[424474528,1780945845000,-500.0,0.0001726,2]
[424474538,1780945845000,-441.67,0.0001726,2]
[424474522,1780945845000,-500.0,0.00016986,2]
[424474608,1780945846000,-571.28,0.00017534,2]
[424474620,1780945846000,-446.5035409,0.00017678,2]
[424474618,1780945846000,-1985.78095568,0.0001755,4]
[424474617,1780945846000,-500.0,0.00017534,2]
[424474616,1780945846000,-500.0,0.00017534,2]
[424474601,1780945846000,-500.0,0.00017534,2]
[424474613,1780945846000,-500.0,0.00017534,2]
[424474614,1780945846000,-500.0,0.00017534,2]
[424474607,1780945846000,-670.35,0.00017534,2]
[424474604,1780945846000,-690.01,0.00017534,2]
[424474605,1780945846000,-632.82,0.00017534,2]
[424474615,1780945846000,-4835.86,0.00017534,2]
[424474619,1780945846000,-574.53466132,0.00017678,2]
[424474624,1780945846000,-216.82167893,0.00017687,2]
[424474621,1780945846000,-194.54247002,0.00017678,2]
[424474632,1780945846000,-183.78219519,0.00017687,2]
[424474634,1780945846000,-174.64428863,0.00017687,2]
[424474623,1780945846000,-158.78296568,0.00017687,2]
[424474636,1780945846000,-243.763,0.00017688,2]
[424474631,1780945846000,-180.01958634,0.00017687,2]
[424474626,1780945846000,-197.90017626,0.00017687,2]
[424474627,1780945846000,-166.39732978,0.00017687,2]
[424474625,1780945846000,-150.19324807,0.00017687,2]
[424474628,1780945846000,-178.40730589,0.00017687,2]
[424474629,1780945846000,-179.42652551,0.00017687,2]
[424474639,1780945846000,-444.0,0.00017688,2]
[424474606,1780945846000,-640.08,0.00017534,2]
[424474643,1780945846000,-165.5609182,0.00017716,2]
[424474622,1780945846000,-175.63450057,0.00017687,2]
[424474610,1780945846000,-421.66115596,0.00017534,2]
[424474599,1780945846000,-500.0,0.00017534,2]
[424474612,1780945846000,-538.51,0.00017534,2]
[424474641,1780945846000,-411.366071,0.000177,2]
[424474575,1780945846000,-500.0,0.0001726,2]
[424474582,1780945846000,-247.082721,0.00017452,2]
[424474581,1780945846000,-374.410408,0.00017401,2]
[424474576,1780945846000,-4835.86,0.0001726,2]
[424474584,1780945846000,-164.54643,0.00017452,2]
[424474579,1780945846000,-500.0,0.0001726,2]
[424474577,1780945846000,-166.98,0.0001726,2]
[424474585,1780945846000,-1000.0,0.00017485,2]
[424474583,1780945846000,-282.975474,0.00017452,2]
[424474578,1780945846000,-500.0,0.0001726,2]
[424474580,1780945846000,-1520.67025812,0.00017387,3]
[424474587,1780945846000,-160.0,0.00017534,2]
[424474597,1780945846000,-358.64,0.00017534,2]
[424474586,1780945846000,-492.0,0.00017485,2]
[424474598,1780945846000,-500.0,0.00017534,2]
[424474589,1780945846000,-500.0,0.00017534,2]
[424474590,1780945846000,-500.0,0.00017534,2]
[424474588,1780945846000,-500.0,0.00017534,2]
[424474596,1780945846000,-182.46377433,0.00017534,2]
[424474594,1780945846000,-529.46,0.00017534,2]
[424474591,1780945846000,-500.0,0.00017534,2]
[424474595,1780945846000,-500.0,0.00017534,2]
[424474593,1780945846000,-500.0,0.00017534,2]
[424474592,1780945846000,-433.39,0.00017534,2]
[424474600,1780945846000,-500.0,0.00017534,2]
[424474603,1780945846000,-500.0,0.00017534,2]
[424474611,1780945846000,-500.0,0.00017534,2]
[424474602,1780945846000,-502.47,0.00017534,2]
[424474609,1780945846000,-425.69,0.00017534,2]
[424474638,1780945846000,-186.0,0.00017688,2]
[424474726,1780945846000,-500.0,0.00017808,2]
[424474647,1780945846000,-165.93810187,0.00017717,2]
[424474706,1780945846000,-500.0,0.00017808,2]
[424474710,1780945846000,-500.0,0.00017808,2]
[424474712,1780945846000,-500.0,0.00017808,2]
[424474713,1780945846000,-500.0,0.00017808,2]
[424474711,1780945846000,-529.46,0.00017808,2]
[424474720,1780945846000,-632.82,0.00017808,2]
[424474714,1780945846000,-156.97,0.00017808,2]
[424474719,1780945846000,-690.01,0.00017808,2]
[424474718,1780945846000,-500.0,0.00017808,2]
[424474721,1780945846000,-640.08,0.00017808,2]
[424474716,1780945846000,-260.95242672,0.00017808,2]
[424474715,1780945846000,-500.0,0.00017808,2]
[424474717,1780945846000,-502.47,0.00017808,2]
[424474705,1780945846000,-166.48687646,0.00017758,2]
[424474722,1780945846000,-670.35,0.00017808,2]
[424474735,1780945846000,-267.930176,0.00017989,2]
[424474724,1780945846000,-538.51,0.00017808,2]
[424474725,1780945846000,-500.0,0.00017808,2]
[424474736,1780945846000,-272.312967,0.00017989,2]
[424474733,1780945846000,-822.0,0.000179,2]
[424474728,1780945846000,-500.0,0.00017808,2]
[424474727,1780945846000,-4835.86,0.00017808,2]
[424474734,1780945846000,-151.0,0.000179,2]
[424474730,1780945846000,-152.43416288,0.00017844,3]
[424474729,1780945846000,-500.0,0.00017808,2]
[424474732,1780945846000,-267.776595,0.00017877,2]
[424474731,1780945846000,-473.21374939,0.00017844,3]
[424474645,1780945846000,-199.29364357,0.00017716,2]
[424474723,1780945846000,-500.0,0.00017808,2]
[424474707,1780945846000,-403.6,0.00017808,2]
[424474737,1780945846000,-190.34962631,0.00018,2]
[424474708,1780945846000,-311.23,0.00017808,2]
[424474709,1780945846000,-179.02,0.00017808,2]
[424474659,1780945846000,-222.80123932,0.00017739,2]
[424474651,1780945846000,-187.333458,0.0001772,2]
[424474649,1780945846000,-186.20405442,0.00017718,2]
[424474661,1780945846000,-163.72058438,0.00017756,2]
[424474653,1780945846000,-466.48892,0.0001772,2]
[424474655,1780945846000,-211.98846127,0.00017735,2]
[424474662,1780945846000,-168.86734238,0.00017756,2]
[424474666,1780945846000,-153.71575652,0.00017756,2]
[424474664,1780945846000,-155.41217374,0.00017756,2]
[424474682,1780945846000,-176.27182073,0.00017756,2]
[424474670,1780945846000,-172.28974971,0.00017756,2]
[424474668,1780945846000,-169.69717804,0.00017756,2]
[424474672,1780945846000,-163.12077519,0.00017756,2]
[424474657,1780945846000,-183.4005193,0.00017739,2]
[424474686,1780945846000,-196.94705292,0.00017756,2]
[424474678,1780945846000,-173.81952035,0.00017756,2]
[424474704,1780945846000,-174.26395097,0.00017758,2]
[424474702,1780945846000,-176.3485506,0.00017758,2]
[424474698,1780945846000,-481.069879,0.00017758,2]
[424474692,1780945846000,-160.0,0.00017756,2]
[424474696,1780945846000,-481.069879,0.00017758,2]
[424474699,1780945846000,-481.069871,0.00017758,2]
[424474690,1780945846000,-160.0,0.00017756,2]
[424474688,1780945846000,-174.10001717,0.00017756,2]
[424474680,1780945846000,-224.38181169,0.00017756,2]
[424474674,1780945846000,-220.13584859,0.00017756,2]
[424474676,1780945846000,-202.81874192,0.00017756,2]
[424474694,1780945846000,-481.069879,0.00017758,2]
[424474684,1780945846000,-204.49275488,0.00017756,2]
[424474771,1780945847000,-190.34962631,0.000182,2]
[424474779,1780945847000,-640.08,0.00018356,2]
[424474781,1780945847000,-500.0,0.00018356,2]
[424474789,1780945847000,-1149.06932264,0.00018489,2]
[424474778,1780945847000,-632.82,0.00018356,2]
[424474772,1780945847000,-650.0,0.00018356,2]
[424474776,1780945847000,-500.0,0.00018356,2]
[424474774,1780945847000,-500.0,0.00018356,2]
[424474773,1780945847000,-529.46,0.00018356,2]
[424474775,1780945847000,-502.47,0.00018356,2]
[424474770,1780945847000,-308.725113,0.00018182,2]
[424474788,1780945847000,-825.0,0.0001836,2]
[424474777,1780945847000,-690.01,0.00018356,2]
[424474783,1780945847000,-500.0,0.00018356,2]
[424474782,1780945847000,-538.51,0.00018356,2]
[424474784,1780945847000,-500.0,0.00018356,2]
[424474785,1780945847000,-4835.86,0.00018356,2]
[424474787,1780945847000,-500.0,0.00018356,2]
[424474786,1780945847000,-500.0,0.00018356,2]
[424474791,1780945847000,-238.20397949,0.00018489,2]
[424474790,1780945847000,-893.00708181,0.00018489,2]
[424474802,1780945847000,-367.56439039,0.00018499,2]
[424474803,1780945847000,-349.28857727,0.00018499,2]
[424474801,1780945847000,-360.03917267,0.00018499,2]
[424474797,1780945847000,-300.38649614,0.00018499,2]
[424474798,1780945847000,-332.79465955,0.00018499,2]
[424474765,1780945847000,-500.0,0.00018082,2]
[424474795,1780945847000,-433.64335786,0.00018499,2]
[424474780,1780945847000,-670.35,0.00018356,2]
[424474767,1780945847000,-5840.08419497,0.00018137,2]
[424474763,1780945847000,-500.0,0.00018082,2]
[424474769,1780945847000,-234.362556,0.00018182,2]
[424474794,1780945847000,-317.56593136,0.00018499,2]
[424474738,1780945847000,-151.0,0.00018,2]
[424474742,1780945847000,-151.0,0.00018005,2]
[424474739,1780945847000,-151.0,0.00018,2]
[424474741,1780945847000,-241.264,0.00018005,2]
[424474749,1780945847000,-297.42,0.00018082,2]
[424474748,1780945847000,-614.05735194,0.00018082,2]
[424474740,1780945847000,-151.0,0.00018,2]
[424474745,1780945847000,-1414.0,0.00018061,2]
[424474744,1780945847000,-150.0,0.00018061,2]
[424474747,1780945847000,-2206.0,0.00018061,2]
[424474743,1780945847000,-150.0,0.00018061,2]
[424474746,1780945847000,-1838.0,0.00018061,2]
[424474766,1780945847000,-500.0,0.00018082,2]
[424474750,1780945847000,-529.46,0.00018082,2]
[424474751,1780945847000,-414.65,0.00018082,2]
[424474762,1780945847000,-500.0,0.00018082,2]
[424474757,1780945847000,-632.82,0.00018082,2]
[424474755,1780945847000,-500.0,0.00018082,2]
[424474761,1780945847000,-538.51,0.00018082,2]
[424474754,1780945847000,-502.47,0.00018082,2]
[424474753,1780945847000,-500.0,0.00018082,2]
[424474760,1780945847000,-500.0,0.00018082,2]
[424474756,1780945847000,-690.01,0.00018082,2]
[424474758,1780945847000,-640.08,0.00018082,2]
[424474759,1780945847000,-670.35,0.00018082,2]
[424474764,1780945847000,-4835.86,0.00018082,2]
[424474768,1780945847000,-160.0,0.00018182,2]
[424474752,1780945847000,-203.72,0.00018082,2]
[424474793,1780945847000,-351.26900113,0.00018499,2]
[424474859,1780945847000,-538.51,0.0001863,2]
[424474796,1780945847000,-236.08748948,0.00018499,2]
[424474831,1780945847000,-347.6390407,0.0001857,2]
[424474835,1780945847000,-178.76435058,0.0001857,2]
[424474837,1780945847000,-408.98550976,0.0001857,2]
[424474833,1780945847000,-173.77636689,0.0001857,2]
[424474839,1780945847000,-348.20003433,0.0001857,2]
[424474850,1780945847000,-529.46,0.0001863,2]
[424474838,1780945847000,-393.89410583,0.0001857,2]
[424474849,1780945847000,-160.0,0.0001863,2]
[424474840,1780945847000,-352.69710121,0.00018573,2]
[424474842,1780945847000,-332.97375292,0.00018573,2]
[424474845,1780945847000,-1077.7538,0.000186,2]
[424474847,1780945847000,-1320.83,0.000186,2]
[424474841,1780945847000,-348.52790195,0.00018573,2]
[424474832,1780945847000,-448.76362337,0.0001857,2]
[424474848,1780945847000,-279.893352,0.00018606,2]
[424474844,1780945847000,-1076.1678,0.000186,2]
[424474843,1780945847000,-246.819642,0.00018585,2]
[424474851,1780945847000,-500.0,0.0001863,2]
[424474853,1780945847000,-500.0,0.0001863,2]
[424474854,1780945847000,-690.01,0.0001863,2]
[424474862,1780945847000,-4835.86,0.0001863,2]
[424474858,1780945847000,-500.0,0.0001863,2]
[424474852,1780945847000,-502.47,0.0001863,2]
[424474863,1780945847000,-500.0,0.0001863,2]
[424474861,1780945847000,-500.0,0.0001863,2]
[424474855,1780945847000,-632.82,0.0001863,2]
[424474857,1780945847000,-670.35,0.0001863,2]
[424474856,1780945847000,-640.08,0.0001863,2]
[424474846,1780945847000,-1320.836,0.000186,2]
[424474830,1780945847000,-405.63748383,0.0001857,2]
[424474860,1780945847000,-500.0,0.0001863,2]
[424474836,1780945847000,-218.59148142,0.0001857,2]
[424474834,1780945847000,-352.54364147,0.0001857,2]
[424474799,1780945847000,-356.81461178,0.00018499,2]
[424474800,1780945847000,-358.85305102,0.00018499,2]
[424474805,1780945847000,-331.87620374,0.00018531,2]
[424474815,1780945847000,-366.8010386,0.00018553,2]
[424474816,1780945847000,-445.60247864,0.00018553,2]
[424474804,1780945847000,-151.0,0.000185,2]
[424474808,1780945847000,-194.72670847,0.00018548,2]
[424474806,1780945847000,-372.40810884,0.00018531,2]
[424474810,1780945847000,-226.61019954,0.00018548,2]
[424474809,1780945847000,-225.00746206,0.00018548,2]
[424474813,1780945847000,-228.57280591,0.00018551,2]
[424474814,1780945847000,-180.94156782,0.00018553,2]
[424474807,1780945847000,-381.10270709,0.00018531,2]
[424474792,1780945847000,-389.08494004,0.00018489,2]
[424474812,1780945847000,-181.80072474,0.0001855,2]
[424474827,1780945847000,-326.24155038,0.0001857,2]
[424474828,1780945847000,-440.27169719,0.0001857,2]
[424474826,1780945847000,-344.57949943,0.0001857,2]
[424474824,1780945847000,-339.39435609,0.0001857,2]
[424474829,1780945847000,-168.52300448,0.0001857,2]